[Event "Titled Tuesday Blitz June 13 Early 2023"]
[White "Swiercz, Dariusz"]
[Black "Mekhitarian, Krikor Sevag"]
[WhiteFideId "1126881"]
[BlackFideId "2107660"]
[WhiteElo "2620"]
[BlackElo "2604"]
[Result "0-1"]
[Round "11"]
[TimeControl "180+2"]
[Date "2023.06.13"]
[WhiteClock "0:00:00"]
[BlackClock "0:00:32"]
[Board "12"]

1. e4 {[%clk 0:03:00]}  e6 {[%clk 0:03:00]} 2. Nf3 {[%clk 0:03:00]}  d5 {[%clk 0:02:59]} 3. e5 {[%clk 0:03:01]}  c5 {[%clk 0:02:58]} 4. g3 {[%clk 0:03:01]}  Nc6 {[%clk 0:02:54]} 5. Bg2 {[%clk 0:03:01]}  Nge7 {[%clk 0:02:19]} 6. O-O {[%clk 0:03:01]}  Ng6 {[%clk 0:02:19]} 7. Re1 {[%clk 0:03:01]}  Qc7 {[%clk 0:02:20]} 8. Qe2 {[%clk 0:03:01]}  b6 {[%clk 0:02:20]} 9. d3 {[%clk 0:02:59]}  Bb7 {[%clk 0:02:20]} 10. h4 {[%clk 0:02:59]}  h6 {[%clk 0:02:18]} 11. Nc3 {[%clk 0:02:57]}  Be7 {[%clk 0:02:16]} 12. h5 {[%clk 0:02:55]}  Nf8 {[%clk 0:02:16]} 13. Nb5 {[%clk 0:02:55]}  Qd8 {[%clk 0:02:12]} 14. Bf4 {[%clk 0:02:55]}  Nd7 {[%clk 0:02:03]} 15. c4 {[%clk 0:02:50]}  dxc4 {[%clk 0:02:00]} 16. dxc4 {[%clk 0:02:51]}  a6 {[%clk 0:02:01]} 17. Nd6+ {[%clk 0:02:48]}  Bxd6 {[%clk 0:02:01]} 18. exd6 {[%clk 0:02:49]}  O-O {[%clk 0:01:59]} 19. Rad1 {[%clk 0:02:48]}  Rb8 {[%clk 0:01:54]} 20. g4 {[%clk 0:02:23]}  Re8 {[%clk 0:01:48]} 21. Ne5 {[%clk 0:02:04]}  Ncxe5 {[%clk 0:01:36]} 22. Bxe5 {[%clk 0:01:51]}  Bxg2 {[%clk 0:01:34]} 23. Kxg2 {[%clk 0:01:52]}  Qc8 {[%clk 0:01:23]} 24. Bc3 {[%clk 0:01:32]}  f6 {[%clk 0:01:15]} 25. b3 {[%clk 0:01:20]}  Qc6+ {[%clk 0:01:14]} 26. f3 {[%clk 0:01:18]}  Rbd8 {[%clk 0:01:12]} 27. Qd3 {[%clk 0:01:16]}  Nf8 {[%clk 0:01:06]} 28. Rd2 {[%clk 0:01:08]}  e5 {[%clk 0:01:00]} 29. Qd5+ {[%clk 0:00:47]}  Qxd5 {[%clk 0:00:59]} 30. Rxd5 {[%clk 0:00:47]}  Ne6 {[%clk 0:00:56]} 31. Kg3 {[%clk 0:00:45]}  Rd7 {[%clk 0:00:54]} 32. Red1 {[%clk 0:00:41]}  Red8 {[%clk 0:00:54]} 33. a3 {[%clk 0:00:23]}  Nd4 {[%clk 0:00:43]} 34. Bxd4 {[%clk 0:00:17]}  cxd4 {[%clk 0:00:33]} 35. f4 {[%clk 0:00:16]}  Rxd6 {[%clk 0:00:32]} 36. Rxd6 {[%clk 0:00:15]}  Rxd6 {[%clk 0:00:32]} 37. fxe5 {[%clk 0:00:16]}  fxe5 {[%clk 0:00:33]} 38. Kf3 {[%clk 0:00:16]}  Kf7 {[%clk 0:00:34]} 39. Ke4 {[%clk 0:00:17]}  Ke6 {[%clk 0:00:35]} 40. Kd3 {[%clk 0:00:12]}  Rd7 {[%clk 0:00:32]} 41. Rg1 {[%clk 0:00:10]}  Rf7 {[%clk 0:00:32]} 42. b4 {[%clk 0:00:08]}  Rf3+ {[%clk 0:00:32]} 43. Ke2 {[%clk 0:00:08]}  e4 {[%clk 0:00:31]} 44. g5 {[%clk 0:00:09]}  d3+ {[%clk 0:00:31]} 45. Kd2 {[%clk 0:00:09]}  Ke5 {[%clk 0:00:32]} 46. gxh6 {[%clk 0:00:08]}  gxh6 {[%clk 0:00:33]} 47. Rg8 {[%clk 0:00:08]}  Rf2+ {[%clk 0:00:33]} 48. Kc3 {[%clk 0:00:08]}  Rc2+ {[%clk 0:00:33]} 49. Kb3 {[%clk 0:00:09]}  e3 {[%clk 0:00:34]} 50. Re8+ {[%clk 0:00:09]}  Kf4 {[%clk 0:00:34]} 51. Rf8+ {[%clk 0:00:09]}  Ke4 {[%clk 0:00:35]} 52. Re8+ {[%clk 0:00:09]}  Kf3 {[%clk 0:00:35]} 53. Rd8 {[%clk 0:00:08]}  Rd2 {[%clk 0:00:33]} 54. Rf8+ {[%clk 0:00:08]}  Ke2 {[%clk 0:00:32]} 55. c5 {[%clk 0:00:08]}  bxc5 {[%clk 0:00:32]} 56. bxc5 {[%clk 0:00:09]}  Rc2 {[%clk 0:00:33]} 57. Rf5 {[%clk 0:00:00]}  Rc1 {[%clk 0:00:32]} 0-1


[Site "https://www.chess.com"]

[Event "Titled Tuesday Blitz June 13 Early 2023"]
[White "Yeletsky, Ivan"]
[Black "Gorovets, Andrey"]
[WhiteFideId "24180327"]
[BlackFideId "13504037"]
[WhiteElo "2380"]
[BlackElo "2459"]
[Result "1-0"]
[Round "11"]
[TimeControl "180+2"]
[Date "2023.06.13"]
[WhiteClock "0:00:02"]
[BlackClock "0:00:00"]
[Board "13"]

1. e4 {[%clk 0:03:00]}  c5 {[%clk 0:02:56]} 2. Nf3 {[%clk 0:03:00]}  d6 {[%clk 0:02:56]} 3. d4 {[%clk 0:03:00]}  cxd4 {[%clk 0:02:57]} 4. Nxd4 {[%clk 0:03:01]}  Nf6 {[%clk 0:02:57]} 5. Nc3 {[%clk 0:03:01]}  a6 {[%clk 0:02:58]} 6. Bg5 {[%clk 0:02:57]}  e6 {[%clk 0:02:57]} 7. f4 {[%clk 0:02:57]}  Qc7 {[%clk 0:02:57]} 8. Qe2 {[%clk 0:02:43]}  b5 {[%clk 0:02:54]} 9. e5 {[%clk 0:02:32]}  dxe5 {[%clk 0:02:53]} 10. fxe5 {[%clk 0:02:33]}  Nfd7 {[%clk 0:02:53]} 11. O-O-O {[%clk 0:02:25]}  Bb7 {[%clk 0:02:35]} 12. Qh5 {[%clk 0:01:59]}  g6 {[%clk 0:02:26]} 13. Qh3 {[%clk 0:01:58]}  Qxe5 {[%clk 0:02:22]} 14. Qh4 {[%clk 0:00:40]}  h6 {[%clk 0:02:12]} 15. Bf4 {[%clk 0:00:37]}  Qf6 {[%clk 0:01:55]} 16. Qxf6 {[%clk 0:00:32]}  Nxf6 {[%clk 0:01:56]} 17. Ndxb5 {[%clk 0:00:32]}  axb5 {[%clk 0:01:53]} 18. Bxb5+ {[%clk 0:00:23]}  Nc6 {[%clk 0:01:45]} 19. Na4 {[%clk 0:00:13]}  Be7 {[%clk 0:01:23]} 20. Nb6 {[%clk 0:00:11]}  Rxa2 {[%clk 0:01:22]} 21. Kb1 {[%clk 0:00:10]}  Ra5 {[%clk 0:01:22]} 22. c4 {[%clk 0:00:06]}  O-O {[%clk 0:01:21]} 23. Bd2 {[%clk 0:00:07]}  Rxb5 {[%clk 0:01:18]} 24. cxb5 {[%clk 0:00:06]}  Na7 {[%clk 0:01:19]} 25. Bc3 {[%clk 0:00:05]}  Nxb5 {[%clk 0:01:11]} 26. Bxf6 {[%clk 0:00:04]}  Be4+ {[%clk 0:01:07]} 27. Ka2 {[%clk 0:00:03]}  Bxf6 {[%clk 0:01:06]} 28. Nd7 {[%clk 0:00:03]}  Ra8+ {[%clk 0:01:06]} 29. Kb3 {[%clk 0:00:04]}  Bg7 {[%clk 0:00:51]} 30. Kc4 {[%clk 0:00:05]}  Nc7 {[%clk 0:00:43]} 31. b4 {[%clk 0:00:04]}  Bxg2 {[%clk 0:00:42]} 32. Rhg1 {[%clk 0:00:04]}  Bd5+ {[%clk 0:00:41]} 33. Kc5 {[%clk 0:00:05]}  Rc8 {[%clk 0:00:29]} 34. Kd6 {[%clk 0:00:04]}  Nb5+ {[%clk 0:00:21]} 35. Ke7 {[%clk 0:00:05]}  Bc3 {[%clk 0:00:18]} 36. Nf6+ {[%clk 0:00:03]}  Bxf6+ {[%clk 0:00:16]} 37. Kxf6 {[%clk 0:00:04]}  Nd6 {[%clk 0:00:14]} 38. Rc1 {[%clk 0:00:04]}  Rb8 {[%clk 0:00:12]} 39. Rc7 {[%clk 0:00:03]}  Ne4+ {[%clk 0:00:12]} 40. Ke7 {[%clk 0:00:03]}  Kg7 {[%clk 0:00:12]} 41. Rf1 {[%clk 0:00:03]}  Rxb4 {[%clk 0:00:00]} 42. Rxf7+ {[%clk 0:00:02]} 1-0


[Site "https://www.chess.com"]

[Event "Titled Tuesday Blitz June 13 Early 2023"]
[White "Xu, Yi"]
[Black "Madaminov, Mukhiddin"]
[WhiteFideId "8605564"]
[BlackFideId "14210703"]
[WhiteElo "2460"]
[BlackElo "2511"]
[Result "0-1"]
[Round "11"]
[TimeControl "180+2"]
[Date "2023.06.13"]
[WhiteClock "0:00:52"]
[BlackClock "0:01:31"]
[Board "14"]

1. e4 {[%clk 0:03:00]}  e5 {[%clk 0:02:59]} 2. Nf3 {[%clk 0:03:00]}  Nf6 {[%clk 0:02:59]} 3. d4 {[%clk 0:02:57]}  Nxe4 {[%clk 0:02:57]} 4. dxe5 {[%clk 0:02:55]}  d5 {[%clk 0:02:56]} 5. Nbd2 {[%clk 0:02:54]}  Qd7 {[%clk 0:02:54]} 6. Bd3 {[%clk 0:02:40]}  Nc5 {[%clk 0:02:54]} 7. Be2 {[%clk 0:02:40]}  Ne6 {[%clk 0:02:49]} 8. Nf1 {[%clk 0:02:29]}  Be7 {[%clk 0:02:47]} 9. Ne3 {[%clk 0:02:26]}  Nf4 {[%clk 0:02:39]} 10. Bf1 {[%clk 0:02:26]}  c6 {[%clk 0:02:03]} 11. h4 {[%clk 0:02:25]}  f6 {[%clk 0:01:54]} 12. g3 {[%clk 0:02:06]}  Ng6 {[%clk 0:01:53]} 13. Bh3 {[%clk 0:02:05]}  Qc7 {[%clk 0:01:52]} 14. e6 {[%clk 0:01:56]}  O-O {[%clk 0:01:51]} 15. h5 {[%clk 0:01:50]}  Ne5 {[%clk 0:01:50]} 16. Nd4 {[%clk 0:01:48]}  Bc5 {[%clk 0:01:38]} 17. c3 {[%clk 0:01:35]}  Re8 {[%clk 0:01:31]} 18. f4 {[%clk 0:01:30]}  Bxd4 {[%clk 0:01:31]} 19. cxd4 {[%clk 0:01:27]}  Nc4 {[%clk 0:01:32]} 20. Nxc4 {[%clk 0:01:14]}  dxc4 {[%clk 0:01:33]} 21. Qe2 {[%clk 0:01:04]}  f5 {[%clk 0:01:31]} 22. Bxf5 {[%clk 0:00:52]}  Qa5+ {[%clk 0:01:31]} 0-1


[Site "https://www.chess.com"]

[Event "Titled Tuesday Blitz June 13 Early 2023"]
[White "Lintchevski, Daniil"]
[Black "Stribuk, Artiom"]
[WhiteFideId "4171055"]
[BlackFideId "13515659"]
[WhiteElo "2559"]
[BlackElo "2303"]
[Result "1/2-1/2"]
[Round "11"]
[TimeControl "180+2"]
[Date "2023.06.13"]
[WhiteClock "0:01:20"]
[BlackClock "0:00:03"]
[Board "16"]

1. e4 {[%clk 0:03:00]}  c5 {[%clk 0:02:43]} 2. c3 {[%clk 0:03:00]}  Nf6 {[%clk 0:02:42]} 3. e5 {[%clk 0:03:01]}  Nd5 {[%clk 0:02:43]} 4. d4 {[%clk 0:03:01]}  cxd4 {[%clk 0:02:43]} 5. cxd4 {[%clk 0:03:02]}  d6 {[%clk 0:02:43]} 6. Bc4 {[%clk 0:03:03]}  Nb6 {[%clk 0:02:41]} 7. Bb3 {[%clk 0:03:04]}  Nc6 {[%clk 0:02:39]} 8. e6 {[%clk 0:03:03]}  fxe6 {[%clk 0:02:30]} 9. Nf3 {[%clk 0:03:04]}  Na5 {[%clk 0:01:59]} 10. Bc2 {[%clk 0:03:00]}  Bd7 {[%clk 0:01:57]} 11. Nc3 {[%clk 0:02:59]}  Qc7 {[%clk 0:01:48]} 12. Ng5 {[%clk 0:02:58]}  g6 {[%clk 0:01:16]} 13. Qf3 {[%clk 0:02:56]}  O-O-O {[%clk 0:01:11]} 14. Nf7 {[%clk 0:02:57]}  Bg7 {[%clk 0:01:12]} 15. Nxh8 {[%clk 0:02:51]}  Rxh8 {[%clk 0:01:11]} 16. Be3 {[%clk 0:02:44]}  Nac4 {[%clk 0:01:04]} 17. O-O {[%clk 0:02:41]}  Kb8 {[%clk 0:01:02]} 18. Bb3 {[%clk 0:02:40]}  Nxb2 {[%clk 0:00:53]} 19. Rac1 {[%clk 0:02:32]}  Nd3 {[%clk 0:00:51]} 20. Nd5 {[%clk 0:02:32]}  Qd8 {[%clk 0:00:42]} 21. Nxb6 {[%clk 0:02:32]}  axb6 {[%clk 0:00:41]} 22. Rb1 {[%clk 0:02:33]}  Rf8 {[%clk 0:00:37]} 23. Qe2 {[%clk 0:02:28]}  Nf4 {[%clk 0:00:37]} 24. Bxf4 {[%clk 0:02:28]}  Rxf4 {[%clk 0:00:36]} 25. Bxe6 {[%clk 0:02:29]}  Bxd4 {[%clk 0:00:36]} 26. g3 {[%clk 0:02:22]}  Rf8 {[%clk 0:00:32]} 27. Bxd7 {[%clk 0:02:21]}  Qxd7 {[%clk 0:00:33]} 28. Qe4 {[%clk 0:02:19]}  e5 {[%clk 0:00:31]} 29. Kg2 {[%clk 0:02:20]}  Bc5 {[%clk 0:00:28]} 30. Qd5 {[%clk 0:02:19]}  Qc6 {[%clk 0:00:26]} 31. Rbd1 {[%clk 0:02:15]}  Kc7 {[%clk 0:00:26]} 32. f4 {[%clk 0:02:11]}  Qxd5+ {[%clk 0:00:21]} 33. Rxd5 {[%clk 0:02:11]}  Kc6 {[%clk 0:00:22]} 34. Rd2 {[%clk 0:01:55]}  e4 {[%clk 0:00:22]} 35. Rfd1 {[%clk 0:01:56]}  h5 {[%clk 0:00:19]} 36. a4 {[%clk 0:01:54]}  Ra8 {[%clk 0:00:15]} 37. Rd5 {[%clk 0:01:54]}  Rxa4 {[%clk 0:00:14]} 38. Rg5 {[%clk 0:01:54]}  Ra2+ {[%clk 0:00:13]} 39. Kh3 {[%clk 0:01:54]}  e3 {[%clk 0:00:13]} 40. Rxg6 {[%clk 0:01:54]}  e2 {[%clk 0:00:13]} 41. Rc1 {[%clk 0:01:55]}  Kd5 {[%clk 0:00:10]} 42. f5 {[%clk 0:01:50]}  Be3 {[%clk 0:00:09]} 43. Rb1 {[%clk 0:01:47]}  Bd2 {[%clk 0:00:05]} 44. Re6 {[%clk 0:01:47]}  e1=Q {[%clk 0:00:05]} 45. Rbxe1 {[%clk 0:01:48]}  Bxe1 {[%clk 0:00:06]} 46. Rxe1 {[%clk 0:01:48]}  Rf2 {[%clk 0:00:06]} 47. g4 {[%clk 0:01:45]}  hxg4+ {[%clk 0:00:05]} 48. Kxg4 {[%clk 0:01:46]}  Rxh2 {[%clk 0:00:05]} 49. Kg5 {[%clk 0:01:46]}  Rg2+ {[%clk 0:00:05]} 50. Kf6 {[%clk 0:01:45]}  b5 {[%clk 0:00:05]} 51. Ke7 {[%clk 0:01:45]}  b4 {[%clk 0:00:04]} 52. f6 {[%clk 0:01:46]}  Kc4 {[%clk 0:00:03]} 53. Re4+ {[%clk 0:01:44]}  Kc3 {[%clk 0:00:03]} 54. Rf4 {[%clk 0:01:45]}  Rh2 {[%clk 0:00:03]} 55. f7 {[%clk 0:01:42]}  Rh8 {[%clk 0:00:03]} 56. Rf3+ {[%clk 0:01:34]}  Kc4 {[%clk 0:00:03]} 57. Rf4+ {[%clk 0:01:27]}  Kc3 {[%clk 0:00:04]} 58. Rf3+ {[%clk 0:01:27]}  Kc2 {[%clk 0:00:04]} 59. Rf2+ {[%clk 0:01:23]}  Kc3 {[%clk 0:00:04]} 60. Kxd6 {[%clk 0:01:20]}  b3 {[%clk 0:00:04]} 61. Rf3+ {[%clk 0:01:20]}  Kc2 {[%clk 0:00:04]} 62. Rf2+ {[%clk 0:01:21]}  Kc3 {[%clk 0:00:04]} 63. Rf3+ {[%clk 0:01:21]}  Kc2 {[%clk 0:00:05]} 64. f8=Q {[%clk 0:01:22]}  Rxf8 {[%clk 0:00:03]} 65. Rxf8 {[%clk 0:01:23]}  b2 {[%clk 0:00:04]} 66. Rf2+ {[%clk 0:01:23]}  Kc3 {[%clk 0:00:04]} 67. Rf3+ {[%clk 0:01:23]}  Kc2 {[%clk 0:00:04]} 68. Rf2+ {[%clk 0:01:24]}  Kb3 {[%clk 0:00:04]} 69. Rf1 {[%clk 0:01:22]}  b5 {[%clk 0:00:02]} 70. Kc5 {[%clk 0:01:22]}  Ka2 {[%clk 0:00:03]} 71. Rf2 {[%clk 0:01:22]}  Ka1 {[%clk 0:00:03]} 72. Rxb2 {[%clk 0:01:19]}  Kxb2 {[%clk 0:00:03]} 73. Kb4 {[%clk 0:01:20]}  Kc2 {[%clk 0:00:03]} 74. Kxb5 {[%clk 0:01:20]} 1/2-1/2


[Site "https://www.chess.com"]

[Event "Titled Tuesday Blitz June 13 Early 2023"]
[White "Vlassov, Nikolai"]
[Black "Ivanchuk, Vasyl"]
[WhiteFideId "4103360"]
[BlackFideId "14100010"]
[WhiteElo "2324"]
[BlackElo "2710"]
[Result "0-1"]
[Round "11"]
[TimeControl "180+2"]
[Date "2023.06.13"]
[WhiteClock "0:00:21"]
[BlackClock "0:00:18"]
[Board "19"]

1. e4 {[%clk 0:03:00]}  e5 {[%clk 0:02:59]} 2. Bc4 {[%clk 0:02:58]}  Nf6 {[%clk 0:02:57]} 3. d3 {[%clk 0:02:58]}  Bc5 {[%clk 0:02:57]} 4. Nf3 {[%clk 0:02:58]}  d6 {[%clk 0:02:57]} 5. Bg5 {[%clk 0:02:58]}  Nbd7 {[%clk 0:02:53]} 6. Nc3 {[%clk 0:02:55]}  c6 {[%clk 0:02:52]} 7. O-O {[%clk 0:02:47]}  O-O {[%clk 0:02:52]} 8. d4 {[%clk 0:02:46]}  exd4 {[%clk 0:02:51]} 9. Nxd4 {[%clk 0:02:46]}  Re8 {[%clk 0:02:46]} 10. Re1 {[%clk 0:02:38]}  Qb6 {[%clk 0:02:16]} 11. Na4 {[%clk 0:02:34]}  Qb4 {[%clk 0:02:17]} 12. b3 {[%clk 0:02:22]}  Rxe4 {[%clk 0:01:58]} 13. Rxe4 {[%clk 0:01:55]}  Nxe4 {[%clk 0:01:58]} 14. Be3 {[%clk 0:01:37]}  d5 {[%clk 0:01:45]} 15. a3 {[%clk 0:01:27]}  Qa5 {[%clk 0:01:43]} 16. Nxc5 {[%clk 0:01:24]}  Qxc5 {[%clk 0:01:28]} 17. Bd3 {[%clk 0:01:20]}  Qe7 {[%clk 0:01:19]} 18. Qh5 {[%clk 0:01:16]}  Ndf6 {[%clk 0:01:16]} 19. Qh4 {[%clk 0:01:15]}  Bd7 {[%clk 0:01:14]} 20. Re1 {[%clk 0:01:10]}  Re8 {[%clk 0:01:14]} 21. f3 {[%clk 0:01:09]}  Nc5 {[%clk 0:01:06]} 22. Bf2 {[%clk 0:01:03]}  Qf8 {[%clk 0:01:04]} 23. Nf5 {[%clk 0:00:52]}  Rxe1+ {[%clk 0:01:01]} 24. Bxe1 {[%clk 0:00:52]}  Nxd3 {[%clk 0:01:01]} 25. Nh6+ {[%clk 0:00:40]}  gxh6 {[%clk 0:01:01]} 26. cxd3 {[%clk 0:00:39]}  Qc5+ {[%clk 0:00:57]} 27. d4 {[%clk 0:00:32]}  Qc1 {[%clk 0:00:45]} 28. Qg3+ {[%clk 0:00:30]}  Qg5 {[%clk 0:00:31]} 29. Qb8+ {[%clk 0:00:30]}  Kg7 {[%clk 0:00:24]} 30. Bg3 {[%clk 0:00:29]}  Qe3+ {[%clk 0:00:20]} 31. Kf1 {[%clk 0:00:21]}  Bf5 {[%clk 0:00:18]} 0-1


[Site "https://www.chess.com"]

[Event "Titled Tuesday Blitz June 13 Early 2023"]
[White "Ilamparthi A R"]
[Black "Parpiev, Isaak"]
[WhiteFideId "45015775"]
[BlackFideId "34281576"]
[WhiteElo "2348"]
[BlackElo "2167"]
[Result "1-0"]
[Round "11"]
[TimeControl "180+2"]
[Date "2023.06.13"]
[WhiteClock "0:00:09"]
[BlackClock "0:00:00"]
[Board "23"]

1. e4 {[%clk 0:03:00]}  e6 {[%clk 0:02:57]} 2. d3 {[%clk 0:03:00]}  d5 {[%clk 0:02:57]} 3. Nd2 {[%clk 0:03:00]}  Nf6 {[%clk 0:02:57]} 4. Ngf3 {[%clk 0:03:00]}  Be7 {[%clk 0:02:56]} 5. g3 {[%clk 0:03:00]}  O-O {[%clk 0:02:56]} 6. Bg2 {[%clk 0:03:00]}  c5 {[%clk 0:02:56]} 7. O-O {[%clk 0:03:01]}  Nc6 {[%clk 0:02:57]} 8. Re1 {[%clk 0:03:01]}  b5 {[%clk 0:02:53]} 9. exd5 {[%clk 0:03:01]}  exd5 {[%clk 0:02:53]} 10. d4 {[%clk 0:03:01]}  c4 {[%clk 0:02:47]} 11. a4 {[%clk 0:03:01]}  b4 {[%clk 0:02:44]} 12. Ne5 {[%clk 0:03:00]}  Nxd4 {[%clk 0:01:45]} 13. Ndxc4 {[%clk 0:02:58]}  Bc5 {[%clk 0:01:35]} 14. Ne3 {[%clk 0:01:46]}  Bb7 {[%clk 0:01:26]} 15. Nd3 {[%clk 0:01:41]}  Bd6 {[%clk 0:01:10]} 16. Nf4 {[%clk 0:01:26]}  Bxf4 {[%clk 0:00:53]} 17. Qxd4 {[%clk 0:01:25]}  Bc7 {[%clk 0:00:45]} 18. Bd2 {[%clk 0:01:02]}  a5 {[%clk 0:00:40]} 19. Nf5 {[%clk 0:01:01]}  Bb6 {[%clk 0:00:33]} 20. Ne7+ {[%clk 0:00:33]}  Kh8 {[%clk 0:00:31]} 21. Qh4 {[%clk 0:00:26]}  Re8 {[%clk 0:00:19]} 22. Nf5 {[%clk 0:00:19]}  Ne4 {[%clk 0:00:18]} 23. Qxd8 {[%clk 0:00:15]}  Raxd8 {[%clk 0:00:18]} 24. Be3 {[%clk 0:00:16]}  d4 {[%clk 0:00:18]} 25. Bf4 {[%clk 0:00:15]}  d3 {[%clk 0:00:17]} 26. cxd3 {[%clk 0:00:14]}  Nxf2 {[%clk 0:00:15]} 27. Rxe8+ {[%clk 0:00:13]}  Rxe8 {[%clk 0:00:14]} 28. Bxb7 {[%clk 0:00:13]}  Nxd3+ {[%clk 0:00:09]} 29. Kf1 {[%clk 0:00:13]}  Nxf4 {[%clk 0:00:07]} 30. gxf4 {[%clk 0:00:14]}  g6 {[%clk 0:00:05]} 31. Ng3 {[%clk 0:00:14]}  Re7 {[%clk 0:00:03]} 32. Bd5 {[%clk 0:00:14]}  Kg7 {[%clk 0:00:03]} 33. Rd1 {[%clk 0:00:14]}  f5 {[%clk 0:00:03]} 34. b3 {[%clk 0:00:14]}  Re3 {[%clk 0:00:03]} 35. Ne2 {[%clk 0:00:11]}  Re7 {[%clk 0:00:01]} 36. Bc4 {[%clk 0:00:11]}  Bc7 {[%clk 0:00:02]} 37. Rd5 {[%clk 0:00:11]}  Kf6 {[%clk 0:00:02]} 38. Rc5 {[%clk 0:00:11]}  Kg7 {[%clk 0:00:00]} 39. Nd4 {[%clk 0:00:09]} 1-0


[Site "https://www.chess.com"]

[Event "Titled Tuesday Blitz June 13 Early 2023"]
[White "Wojtaszek, Radoslaw"]
[Black "Itgelt, Khuyagtsogt"]
[WhiteFideId "1118358"]
[BlackFideId "4902912"]
[WhiteElo "2586"]
[BlackElo "2227"]
[Result "1/2-1/2"]
[Round "11"]
[TimeControl "180+2"]
[Date "2023.06.13"]
[WhiteClock "0:00:20"]
[BlackClock "0:00:53"]
[Board "25"]

1. e4 {[%clk 0:03:00]}  e6 {[%clk 0:02:58]} 2. d4 {[%clk 0:02:59]}  d5 {[%clk 0:02:59]} 3. exd5 {[%clk 0:02:58]}  exd5 {[%clk 0:03:00]} 4. Nf3 {[%clk 0:02:59]}  Nc6 {[%clk 0:02:59]} 5. Bd3 {[%clk 0:02:47]}  Bd6 {[%clk 0:02:58]} 6. O-O {[%clk 0:02:43]}  Nge7 {[%clk 0:02:58]} 7. c3 {[%clk 0:02:40]}  Bg4 {[%clk 0:02:54]} 8. h3 {[%clk 0:02:40]}  Bh5 {[%clk 0:02:53]} 9. Re1 {[%clk 0:02:36]}  Qd7 {[%clk 0:02:51]} 10. Nbd2 {[%clk 0:02:26]}  f6 {[%clk 0:02:46]} 11. b4 {[%clk 0:02:05]}  O-O {[%clk 0:02:42]} 12. Qc2 {[%clk 0:02:02]}  Bg6 {[%clk 0:02:42]} 13. a4 {[%clk 0:01:58]}  Rae8 {[%clk 0:02:35]} 14. Nf1 {[%clk 0:01:51]}  Bxd3 {[%clk 0:02:18]} 15. Qxd3 {[%clk 0:01:52]}  Qf5 {[%clk 0:02:18]} 16. Qxf5 {[%clk 0:01:47]}  Nxf5 {[%clk 0:02:19]} 17. Bd2 {[%clk 0:01:47]}  h5 {[%clk 0:02:03]} 18. g4 {[%clk 0:01:40]}  hxg4 {[%clk 0:02:03]} 19. hxg4 {[%clk 0:01:41]}  Nfe7 {[%clk 0:02:04]} 20. Ng3 {[%clk 0:01:40]}  Bxg3 {[%clk 0:01:54]} 21. fxg3 {[%clk 0:01:40]}  g5 {[%clk 0:01:55]} 22. Nh2 {[%clk 0:01:03]}  Nc8 {[%clk 0:01:45]} 23. Rxe8 {[%clk 0:00:54]}  Rxe8 {[%clk 0:01:46]} 24. Re1 {[%clk 0:00:55]}  Rxe1+ {[%clk 0:01:40]} 25. Bxe1 {[%clk 0:00:55]}  Nd6 {[%clk 0:01:41]} 26. Nf1 {[%clk 0:00:56]}  Nc4 {[%clk 0:01:41]} 27. Kf2 {[%clk 0:00:53]}  Kf7 {[%clk 0:01:40]} 28. Ke2 {[%clk 0:00:53]}  a6 {[%clk 0:01:40]} 29. Ne3 {[%clk 0:00:44]}  Nxe3 {[%clk 0:01:39]} 30. Kxe3 {[%clk 0:00:45]}  b5 {[%clk 0:01:39]} 31. axb5 {[%clk 0:00:41]}  axb5 {[%clk 0:01:40]} 32. Kf3 {[%clk 0:00:41]}  Ke6 {[%clk 0:01:39]} 33. Bd2 {[%clk 0:00:42]}  Ne7 {[%clk 0:01:39]} 34. Be1 {[%clk 0:00:41]}  Nc8 {[%clk 0:01:40]} 35. Bd2 {[%clk 0:00:41]}  Nd6 {[%clk 0:01:40]} 36. Be1 {[%clk 0:00:40]}  Ne4 {[%clk 0:01:39]} 37. Ke3 {[%clk 0:00:40]}  f5 {[%clk 0:01:39]} 38. Kf3 {[%clk 0:00:37]}  Nf6 {[%clk 0:01:35]} 39. gxf5+ {[%clk 0:00:37]}  Kxf5 {[%clk 0:01:36]} 40. Bd2 {[%clk 0:00:37]}  Ng4 {[%clk 0:01:11]} 41. Be1 {[%clk 0:00:27]}  Nh2+ {[%clk 0:01:10]} 42. Kg2 {[%clk 0:00:27]}  Ng4 {[%clk 0:01:10]} 43. Kf3 {[%clk 0:00:27]}  c6 {[%clk 0:01:06]} 44. Bd2 {[%clk 0:00:26]}  Nf6 {[%clk 0:01:04]} 45. Be1 {[%clk 0:00:27]}  g4+ {[%clk 0:01:02]} 46. Ke3 {[%clk 0:00:26]}  Ne4 {[%clk 0:01:03]} 47. Ke2 {[%clk 0:00:27]}  Ng5 {[%clk 0:01:01]} 48. Ke3 {[%clk 0:00:24]}  Nf3 {[%clk 0:00:59]} 49. Bf2 {[%clk 0:00:23]}  Nh2 {[%clk 0:01:00]} 50. Be1 {[%clk 0:00:20]}  Nf3 {[%clk 0:00:53]} 51. Bf2 {[%clk 0:00:20]} 1/2-1/2


[Site "https://www.chess.com"]